Cogmind - Beta 14 @@@ ROGUE MODE // 2024.11.25 @ 23:53:31 Player: Komeiji O. Result: Destroyed by G-67 Veteran with Field Laser Performance ------------- Evolutions (4) 2000 Regions Visited (12) 2400 Robots Destroyed (188) 940 Value Destroyed (6798) 6798 Prototype IDs (35) 700 Alien Tech Used (0) 0 Bonus (2395) 2395 TOTAL SCORE: 15233 Bonus ------- High Alert Combat Kills 1145 Follower Combat Kills 429 Aligned with FarCom 300 Met Imprinter 300 Was Imprinted 300 Friendly Fire -79 Cogmind --------- Core Integrity 0/850 Matter 275/300 Energy 18/100 System Corruption 12% Temperature Cool (0) Movement Treading (240) Ox1 Location -6/Lower Caves Parts ------- > --- POWER (1) -------- (None) > --- PROPULSION (4) --- Improved Medium Treads Improved Medium Treads > --- UTILITY (6) ------ Improved Heat Sink Advanced Heat Sink High-capacity Storage Unit Experimental Optical Array Experimental Signal Interpreter Layered Medium Armor Plating > --- WEAPON (4) ------- YOLO Cannon Long-range Missile Launcher > --- INVENTORY (20) --- Light Treads Improved Medium Treads Improved Medium Treads Carbon-fiber Leg Carbon-fiber Leg Carbon-fiber Leg Power Amplifier Large Storage Unit 0b10 Decoder Chip [Skirmisher] Faulty Experimental Targeting Computer Advanced Melee Analysis Suite Microactuators Makeshift Transmission Jammer Hacking Drone Bay Gauss Rifle CR-A16's Pointy Stick Peak State ------------ > --- POWER ------------ Light Antimatter Reactor > --- PROPULSION ------- Improved Medium Treads Improved Medium Treads Improved Medium Treads Improved Medium Treads > --- UTILITY ---------- High-capacity Storage Unit Experimental Optical Array Experimental Signal Interpreter Advanced Melee Analysis Suite Advanced Target Analyzer Experimental Core Analyzer > --- WEAPON ----------- Heavy Plasma Cannon AWS/Autocannon > --- INVENTORY -------- Light Angular Momentum Engine Improved Medium Treads Improved Medium Treads Carbon-fiber Leg Carbon-fiber Leg Carbon-fiber Leg Improved Heat Sink Large Storage Unit 0b10 Decoder Chip [Skirmisher] Experimental Targeting Computer Advanced Melee Analysis Suite Makeshift Transmission Jammer Hacking Drone Bay Heavy Plasma Cannon YOLO Cannon Gauss Rifle Segregator CR-A16's Pointy Stick [Rating: 110] Favorites ----------- Power Reinforced Deuterium Engine Engine Reinforced Deuterium Engine Power Core Light Nuclear Core Reactor Light Antimatter Reactor Propulsion Combat Airjet Treads Armored Treads Leg Carbon-fiber Leg Wheel Compact Wheel Hover Unit Combat Airjet Flight Unit VTOL Module Utility Large Storage Unit Device Seismic Detector Storage Large Storage Unit Processor Experimental Core Analyzer Protection Improved Medium Armor Plating Weapon Impact Mace Energy Gun EM Shotgun Energy Cannon Heavy Plasma Cannon Ballistic Gun Assault Rifle Ballistic Cannon AWS/Autocannon Launcher Heavy Missile Launcher Impact Weapon Impact Mace Slashing Weapon Great Axe Piercing Weapon CR-A16's Pointy Stick Build | -11 -10 -10 -10 -9 -8 -7 -7 -7 -7 -6 -6 -6 ------- Run | Yrd Mat Min Exi Min Mat Fac Low Low Zio Pro Fac Low Slots Evolved 8 | . . . . . 4 2 . . . . 2 . Power . | . . . . . . . . . . . . . Propulsion 2 | . . . . . 1 1 . . . . . . Utility 4 | . . . . . 1 1 . . . . 2 . Weapon 2 | . . . . . 2 . . . . . . . Parts Attached 259 | 7 13 9 4 5 19 68 13 21 10 6 73 11 Power 20 | 1 2 . 1 . 3 5 2 . . . 5 1 Engine 16 | 1 2 . 1 . 2 4 1 . . . 4 1 Core 3 | . . . . . 1 1 1 . . . . . Reactor 1 | . . . . . . . . . . . 1 . Propulsion 70 | 2 . 3 . . 4 24 3 4 2 3 25 . Treads 32 | 1 . 1 . . 2 20 3 . . 1 4 . Leg 21 | . . . . . . . . 1 2 1 17 . Wheel 3 | 1 . . . . . . . . . . 2 . Hover 13 | . . 2 . . 2 4 . 2 . 1 2 . Flight 1 | . . . . . . . . 1 . . . . Utility 86 | 2 8 2 . 1 4 22 6 8 5 3 21 4 Device 39 | 1 3 1 . 1 . 11 5 5 . 2 7 3 Storage 8 | 1 2 . . . . 2 1 . . . 2 . Processor 13 | . . . . . . 3 . 3 3 . 4 . Hackware . | . . . . . . . . . . . . . Protection 26 | . 3 1 . . 4 6 . . 2 1 8 1 Artifact . | . . . . . . . . . . . . . Weapon 83 | 2 3 4 3 4 8 17 2 9 3 . 22 6 Energy Gun 14 | . 3 2 2 3 3 1 . . . . . . Energy Cannon 11 | . . . 1 . 3 1 . 1 . . 2 3 Ballistic Gun 5 | 2 . . . . . 3 . . . . . . Ballistic Cannon 6 | . . . . . 2 . . . 1 . 3 . Launcher 10 | . . 2 . 1 . 1 . 3 . . 1 2 Special Weapon . | . . . . . . . . . . . . . Impact Weapon 20 | . . . . . . 7 2 3 1 . 7 . Slashing Weapon 8 | . . . . . . 4 . . . . 3 1 Piercing Weapon 9 | . . . . . . . . 2 1 . 6 . Special Melee Weapon . | . . . . . . . . . . . . . Unidentified Prototypes 9 | . . . . . . 3 . . 3 . 3 . Corrupted Parts 1 | . . . . . . . 1 . . . . . System Corruption 7 | . . . . . . . 7 . . . . . Parts Lost 48 | . . . . 1 3 10 4 8 . . 16 6 Power 9 | . . . . . . 2 2 . . . 3 2 Propulsion 18 | . . . . . . 5 1 5 . . 5 2 Utility 14 | . . . . 1 . 3 1 2 . . 6 1 Weapon 7 | . . . . . 3 . . 1 . . 2 1 Highest Loss Streak 5 | . . . . 1 1 2 3 3 . . 4 5 To Critical Strikes 2 | . . . . . . . . . . . . 2 Average Slot Usage (%) 90 | . 100 99 82 93 82 93 93 81 82 83 94 89 Engine 7 | . 14 14 14 14 8 5 6 7 7 7 5 5 Treads 9 | . 14 11 . . 3 22 28 9 . . 2 26 Leg 5 | . . . . . . . . 5 2 12 18 . Wheel 1 | . 14 11 . . . . . . . . . . Hover 7 | . . 3 28 28 22 4 . . 15 16 1 . Device 7 | . 13 13 14 8 9 7 16 15 2 . 5 3 Storage 8 | . 14 14 14 14 9 7 7 7 7 7 6 6 Processor 10 | . . . . . . 7 . 5 13 15 22 24 Protection 3 | . . . . . 7 5 1 . 4 6 4 3 Energy Gun 3 | . 4 24 6 27 20 . . . . . . . Ballistic Gun 1 | . 23 . . . . 1 . . . . . . Impact Weapon 9 | . . . . . . 11 22 14 14 7 12 . Slashing Weapon 4 | . . . . . . 15 7 2 . . 1 . Piercing Weapon 4 | . . . . . . . . 5 12 . 8 . Peak Build Rating 110 | 7 10 18 38 23 57 55 57 56 89 90 110 102 Average Rating 54 | 5 7 11 22 22 31 49 53 47 63 88 80 92 On Entrance 42 | . 7 10 18 38 23 29 54 56 48 89 89 96 Naked Turns . | . . . . . . . . . . . . . Heaviest Build 123 | 14 22 24 34 22 87 63 65 56 105 105 123 96 Greatest Support 120 | 16 20 24 24 24 43 86 80 80 40 40 120 120 Greatest Overweight (x) 34 | . 1 7 1 . 2 2 . 16 2 34 32 1 Average Overweight (x) . | . . . . . . . . 1 1 2 . . Largest Inventory Capacity 20 | 8 10 10 10 10 10 15 15 15 15 15 20 20 Average Capacity 13 | 7 9 10 10 10 10 13 15 15 15 15 15 20 Most Carried 20 | 6 10 10 10 10 10 15 15 15 15 15 20 20 Average Carried 13 | 3 8 9 9 9 9 12 13 14 14 14 15 18 Final Capacity 20 | 8 10 10 10 10 10 15 15 15 15 15 20 20 Final Carried 18 | 6 10 10 10 10 10 15 15 11 15 15 18 16 Class Distribution -------------------- 37% | Mutant 28% | Gladiator 10% | Scavenger-Gladiator 8% | Gunner 6% | Scavenger-Mutant Dominant Class ---------------- Mutant | -10/Materials Mutant | -10/Mines Scavenger-Mutant | -10/Exiles Scavenger-Mutant | -9/Mines Scavenger-Skirmisher | -8/Materials Gladiator | -7/Factory Gladiator | -7/Lower Caves Mutant | -7/Lower Caves Mutant | -7/Zion Gunner | -6/Proximity Caves Gladiator | -6/Factory Pyromaniac-Gunner | -6/Lower Caves Resources | -11 -10 -10 -10 -9 -8 -7 -7 -7 -7 -6 -6 -6 ----------- Run | Yrd Mat Min Exi Min Mat Fac Low Low Zio Pro Fac Low Matter Collected 3541 | 234 318 198 20 132 184 825 210 270 177 90 707 176 Remotely . | . . . . . . . . . . . . . Salvage Created 7455 | 29 640 272 . 44 652 2560 289 298 . 217 2229 225 Parts 318 | 4 48 23 . 9 42 79 10 11 . 3 86 3 Haulers Intercepted 6 | . 1 . . . . 2 . . . . 3 . Recyclers Shooed 2 | . . . . . 1 . . . . . 1 . Parts Field Recycled . | . . . . . . . . . . . . . Retrieved Matter . | . . . . . . . . . . . . . Parts Self-Destructed 27 | . . . . . . . 7 7 . 11 . 2 Prevented 7 | . . . . . . . 1 1 . 5 . . Kills | -11 -10 -10 -10 -9 -8 -7 -7 -7 -7 -6 -6 -6 ------- Run | Yrd Mat Min Exi Min Mat Fac Low Low Zio Pro Fac Low Combat Hostiles Destroyed 144 | . 13 5 . 4 12 42 7 14 . 4 39 4 Melee 42 | . . . . . . 27 3 1 . . 11 . Guns 21 | . 13 5 . . 3 . . . . . . . Cannons 31 | . . . . . 6 . . . . 4 17 4 AOE 25 | . . . . 4 3 5 1 9 . . 3 . Classes Destroyed 21 | 1 7 . . . 3 4 2 1 . . 3 . Worker 9 | . 1 2 . . . 4 . . . . 2 . Builder 7 | . 1 1 . . 1 2 . . . . 2 . Tunneler 6 | 1 1 . . 2 . 1 . . . . 1 . Hauler 6 | . 1 . . . . 2 . . . . 3 . Recycler 10 | . 2 1 . . 1 5 . . . . 1 . Mechanic 2 | . . . . . . 1 . . . . 1 . Operator 2 | . 1 . . . 1 . . . . . . . Watcher 4 | . . . . . 1 . . . . . 3 . Swarmer 31 | . 6 3 . 4 1 4 3 7 . . 3 . Grunt 69 | . 7 2 . . 5 25 2 5 . 3 17 3 Brawler 1 | . . . . . . 1 . . . . . . Duelist 3 | . . . . . . 1 . 1 . . 1 . Protector 1 | . . . . . . . . . . . 1 . Sentry 15 | . . . . . 4 6 1 . . 1 2 1 Specialist 4 | . . . . . . . . . . . 4 . Hunter 6 | . . . . . 2 1 . . . . 3 . Programmer 11 | . . . . . . 4 . . . . 7 . Heavy 1 | . . . . . . . . . . . 1 . Behemoth 1 | . . . . . . . 1 . . . . . Samaritan 1 | . . . . . . . 1 . . . . . Master Thief 1 | . . . . . . . . 1 . . . . Best Kill Streak 10 | 1 4 2 . 4 6 7 3 4 . 3 10 2 Combat Bots Only 7 | . 3 2 . 4 5 6 3 4 . 3 7 2 Max Kills in Single Turn 4 | 1 2 1 . 1 2 4 1 4 . 1 2 1 Gunslinging 1 | . 1 . . . . . . . . . . . Exploded 4 | . . . . 1 2 4 1 4 . . 2 . Melee 1 | . . . . . . 1 1 1 . . 1 . Uniques/NPCs Destroyed . | . . . . . . . . . . . . . Combat | -11 -10 -10 -10 -9 -8 -7 -7 -7 -7 -6 -6 -6 -------- Run | Yrd Mat Min Exi Min Mat Fac Low Low Zio Pro Fac Low Hostile Shots Fired 1093 | . 42 9 . 16 50 326 127 73 . 11 340 99 Missed 336 | . 11 1 . 8 11 99 46 19 . 3 111 27 Damage Taken 11636 | . 313 99 . 134 505 3215 1311 1009 . 121 3895 1034 Core 1545 | . 41 9 . 9 56 270 102 174 . 33 755 96 Absorbed by Shields . | . . . . . . . . . . . . . Ignored by Resistances 20 | . . . . . . 20 . . . . . . Regen/Repaired (Parts) 113 | . . . . . . 57 . . . . 56 . Core Remaining (%) 70 | 100 . . . 76 89 . . . . 17 . . Volleys Fired 140 | 2 59 14 . 9 21 2 . 10 . . 12 11 Largest 3 | 2 2 2 . 2 3 1 . 1 . . 2 3 Hottest 280 | 40 60 90 . 90 146 60 . 60 . . 190 280 Shots Fired 327 | 4 118 28 . 11 58 3 . 10 . 9 64 22 Gun 194 | 4 118 28 . 5 37 2 . . . . . . Cannon 115 | . . . . . 21 1 . 1 . 9 62 21 Launcher 18 | . . . . 6 . . . 9 . . 2 1 Special . | . . . . . . . . . . . . . Kinetic 198 | 4 114 . . . 19 2 . . . 9 50 . Thermal 60 | . . . . . 27 . . . . . 12 21 Explosive 18 | . . . . 6 . . . 9 . . 2 1 Electromagnetic 51 | . 4 28 . 5 12 1 . 1 . . . . Robot Hit Streak 12 | 4 9 7 . 3 10 1 . 2 . 3 9 12 Robot Miss Streak 5 | . 3 2 . 2 3 1 . 1 . 2 3 5 Penetration Max . | . . . . . . . . . . . . . Secondary Targets 1 | . 1 . . . . . . . . . . . Max Gunslinging Chain 1 | . 1 . . . . . . . . . . . Autonomous 79 | . . . . . 19 . . . . 9 51 . Shots Hit Robots 435 | 4 71 21 . 5 39 122 28 19 . 5 107 14 Core Hits 208 | 1 36 16 . 7 24 48 5 11 . 3 50 7 Critical Kills 7 | . . . . . . 3 . . . . 4 . Critical Parts Destroyed 29 | . . . . . . 13 5 2 . . 9 . Critical Strikes 55 | . . . . . 1 28 5 2 . 1 18 . Meltdown 1 | . . . . . . . . . . . 1 . Blast 6 | . . . . . 1 . . . . 1 4 . Smash 36 | . . . . . . 16 5 2 . . 13 . Sever 12 | . . . . . . 12 . . . . . . Melee Attacks 379 | . . . . . . 184 37 25 1 1 130 1 Thermal 10 | . . . . . . . . . . . 9 1 Impact 214 | . . . . . . 82 31 22 1 1 77 . Slashing 109 | . . . . . . 102 6 1 . . . . Piercing 46 | . . . . . . . . 2 . . 44 . Sneak Attacks 24 | . . . . . . 15 1 . . . 7 1 Combat Hostiles 2 | . . . . . . 1 . . . . . 1 Follow-up Attacks 78 | . . . . . . 38 11 6 . . 23 . Damage Inflicted 22405 | 45 811 284 . 322 1950 6893 1319 1850 . 422 7928 581 Guns 1553 | 45 811 284 . 51 362 . . . . . . . Cannons 5392 | . . . . . 1045 10 . 5 . 422 3402 508 Explosions 4197 | . . . . 271 543 875 . 1106 . . 1329 73 Melee 11263 | . . . . . . 6008 1319 739 . . 3197 . Ramming . | . . . . . . . . . . . . . Kinetic 5289 | 45 779 . . . 1039 . . . . 422 3004 . Thermal 1326 | . . . . 40 230 . . . . . 475 581 Explosive 2892 | . . . . 231 . 399 . 1010 . . 1252 . Electromagnetic 1635 | . 32 284 . 51 681 486 . 101 . . . . Impact 7144 | . . . . . . 2916 1055 705 . . 2468 . Slashing 3390 | . . . . . . 3092 264 34 . . . . Piercing 729 | . . . . . . . . . . . 729 . Highest Corruption 17 | . 1 1 1 1 6 9 16 17 17 . 10 12 Average Corruption 6 | . 1 1 1 1 4 6 14 16 17 . 3 10 Corruption Purged . | . . . . . . . . . . . . . Corruption Blocked . | . . . . . . . . . . . . . Effects 252 | . 1 8 2 . 9 89 28 43 3 . 55 14 Message Errors 55 | . . 1 1 . 3 20 1 12 2 . 13 2 Matter Fused 67 | . . 3 1 . 1 29 8 10 . . 12 3 Heat Flow Errors 37 | . . 1 . . 3 11 5 4 . . 12 1 Energy Discharges 27 | . 1 1 . . . 8 2 6 1 . 7 1 Parts Rejected 4 | . . . . . . 3 . . . . . 1 Parts Fused 3 | . . 1 . . . 1 1 . . . . . Data Loss (minor) 31 | . . 1 . . 1 9 8 6 . . 5 1 Data Loss (major) 13 | . . . . . . 6 1 . . . 5 1 Misfires 3 | . . . . . . 1 . 1 . . . 1 Alerts 4 | . . . . . . 1 2 . . . . 1 Misdirections 5 | . . . . . . . . 3 . . . 2 Weapon Failures 3 | . . . . . 1 . . 1 . . 1 . Overload Shots . | . . . . . . . . . . . . . Overflow Damage 3195 | . . . . 4 122 1152 316 255 . 47 1282 17 Projectiles 584 | . . . . . 122 . . . . 47 398 17 Explosions 170 | . . . . 4 . 48 . 97 . . 21 . Melee 2441 | . . . . . . 1104 316 158 . . 863 . Knockbacks 38 | . . . . . 2 12 2 3 . . 19 . Impact 24 | . . . . . . 11 2 3 . . 8 . Kinetic 12 | . . . . . 2 . . . . . 10 . Secondary 2 | . . . . . . 1 . . . . 1 . Self-Inflicted Damage 611 | . . 17 . 63 . 227 . 97 . . 143 64 Shots 13 | . . 1 . 2 . 3 . 3 . . 3 1 Rammed . | . . . . . . . . . . . . . Targets Rammed . | . . . . . . . . . . . . . Kicked . | . . . . . . . . . . . . . Crushed . | . . . . . . . . . . . . . Highest Temperature 379 | . 12 140 . 46 379 283 146 134 . 5 233 219 Average Temperature 81 | . 6 42 . 19 118 86 70 61 . 5 86 67 Received Heat Transfer 3225 | . 75 18 . . 216 1227 303 270 . 48 807 261 Effects 1 | . . . . . 1 . . . . . . . Damage (minor) 1 | . . . . . 1 . . . . . . . Siege Activations . | . . . . . . . . . . . . . Robots Corrupted 29 | . . . . . . 12 3 4 . . 10 . Combat Hostiles 25 | . . . . . . 10 3 4 . . 8 . Parts Fried 47 | . . 1 . . . 27 2 5 . . 12 . Impact Corruptions 75 | . . . . . . 30 7 8 . . 30 . Robots Melted 1 | . . . . . . . . . . . 1 . Combat Hostiles . | . . . . . . . . . . . . . Parts Melted 5 | . . . . . . . . . . . 3 2 Heat Transferred 1842 | . . . . . 592 . . . . . 490 760 Parts Sabotaged 3 | . . . . . . . . . . . 3 . Parts Stolen 1 | . . . . . . . . 1 . . . . Parts Stripped . | . . . . . . . . . . . . . Power Chain Reactions 2 | . . 1 . 1 . . . . . . . . Latent Energy Used 657 | . . . . . 400 200 . 57 . . . . LE Corruption 10 | . . . . . 6 3 . 1 . . . . Alert | -11 -10 -10 -10 -9 -8 -7 -7 -7 -7 -6 -6 -6 ------- Run | Yrd Mat Min Exi Min Mat Fac Low Low Zio Pro Fac Low Peak Influence 1115 | 5 243 286 . 181 507 1115 . . . . 1079 . Initial 230 | . 3 67 . . 70 230 . . . . 202 . Average 374 | 1 108 94 . 129 247 482 . . . . 492 . Maximum Alert Level 4 | . 1 1 . . 2 4 . . . . 3 . Low Security (%) 26 | 100 81 87 . 100 47 . . . . . 4 . Level 1 41 | . 18 12 . . 40 51 . . . . 52 . Level 2 12 | . . . . . 11 30 . . . . 6 . Level 3 18 | . . . . . . 16 . . . . 37 . Level 4 . | . . . . . . 1 . . . . . . Level 5 . | . . . . . . . . . . . . . High Security . | . . . . . . . . . . . . . Max Security . | . . . . . . . . . . . . . Squads Dispatched 29 | . 3 . . . 2 12 . . . . 12 . Investigation 2 | . . . . . . 2 . . . . . . Extermination 11 | . . . . . . 5 . . . . 6 . Reinforcement 12 | . 3 . . . 2 3 . . . . 4 . Assault 4 | . . . . . . 2 . . . . 2 . Garrison . | . . . . . . . . . . . . . Intercept . | . . . . . . . . . . . . . Searches Triggered . | . . . . . . . . . . . . . Construction Impeded . | . . . . . . . . . . . . . Haulers Reinforced 2 | . . . . . . 1 . . . . 1 . Active Scanning Responses . | . . . . . . . . . . . . . Cargo Convoy Interrupts 1 | . . . . . . . . . . . 1 . Stealth | -11 -10 -10 -10 -9 -8 -7 -7 -7 -7 -6 -6 -6 --------- Run | Yrd Mat Min Exi Min Mat Fac Low Low Zio Pro Fac Low Distress Signals 8 | . 1 . . . 3 1 . . . . 3 . Communications Jammed 3 | . . . . . . . . . . . 3 . Distress Signals 2 | . . . . . . . . . . . 2 . Times Spotted 244 | . 24 7 . 8 22 69 11 16 . 8 71 8 Peak Tracking Total 11 | . 6 3 . 4 7 8 4 4 . 3 11 5 Tactical Retreats 22 | . . 1 . 2 2 6 4 1 . . 6 . Traps | -11 -10 -10 -10 -9 -8 -7 -7 -7 -7 -6 -6 -6 ------- Run | Yrd Mat Min Exi Min Mat Fac Low Low Zio Pro Fac Low Traps Triggered 12 | . 2 . . . . 6 . . . . 4 . Indirectly . | . . . . . . . . . . . . . Trap Hack Attempts . | . . . . . . . . . . . . . Triggered . | . . . . . . . . . . . . . Disarmed . | . . . . . . . . . . . . . Reprogrammed . | . . . . . . . . . . . . . Reused . | . . . . . . . . . . . . . Traps Extracted . | . . . . . . . . . . . . . Installed . | . . . . . . . . . . . . . Triggered 4 | . . 1 . . . . 1 . . . 2 . Machines | -11 -10 -10 -10 -9 -8 -7 -7 -7 -7 -6 -6 -6 ---------- Run | Yrd Mat Min Exi Min Mat Fac Low Low Zio Pro Fac Low Machines Disabled 16 | . . 1 . . 4 5 . . . . 6 . Max in Single Turn 4 | . . 1 . . 2 4 . . . . 4 . Garrison Access 2 | . . . . . . 1 . . . . 1 . Machines Repaired . | . . . . . . . . . . . . . Machines Dismantled . | . . . . . . . . . . . . . Machines Sabotaged . | . . . . . . . . . . . . . Overloaded Fab Kills . | . . . . . . . . . . . . . Hacking | -11 -10 -10 -10 -9 -8 -7 -7 -7 -7 -6 -6 -6 --------- Run | Yrd Mat Min Exi Min Mat Fac Low Low Zio Pro Fac Low Machines Accessed 34 | . 7 2 2 . 3 13 . 1 . . 6 . Terminals 18 | . 7 2 . . 2 7 . . . . . . Fabricators 5 | . . . . . . 4 . . . . 1 . Repair Stations 1 | . . . . . . . . . . . 1 . Recycling Units 2 | . . . . . . 1 . . . . 1 . Scanalyzers 2 | . . . . . 1 . . . . . 1 . Garrison Access 3 | . . . . . . 1 . . . . 2 . Total Hacks 89 | . 25 5 4 . 8 34 . 1 . . 12 . Successful 48 | . 11 4 4 . 6 18 . 1 . . 4 . Failed 41 | . 14 1 . . 2 16 . . . . 8 . Catastrophic 5 | . 2 . . . . 2 . . . . 1 . Database Lockouts . | . . . . . . . . . . . . . Manual 64 | . 22 2 1 . 6 23 . . . . 10 . Terminals 60 | . 25 5 . . 6 24 . . . . . . Fabricators 8 | . . . . . . 6 . . . . 2 . Repair Stations 2 | . . . . . . . . . . . 2 . Recycling Units 4 | . . . . . . 2 . . . . 2 . Scanalyzers 4 | . . . . . 2 . . . . . 2 . Garrison Access 6 | . . . . . . 2 . . . . 4 . Terminal Hacks 15 | . 3 2 4 . . 5 . 1 . . . . Record 3 | . . . 3 . . . . . . . . . Robot Analysis 3 | . 1 . . . . 2 . . . . . . Prototype ID Bank 1 | . . . . . . 1 . . . . . . Open Door 1 | . . . . . . . . 1 . . . . Alert Level 1 | . . . . . . 1 . . . . . . Locate Traps 2 | . 2 . . . . . . . . . . . Dispatch Records 1 | . . 1 . . . . . . . . . . Zone Layout 2 | . . 1 . . . 1 . . . . . . Derelict Proto ID Bank 1 | . . . 1 . . . . . . . . . Fabricator Hacks 3 | . . . . . . 3 . . . . . . Network Status 2 | . . . . . . 2 . . . . . . Build 1 | . . . . . . 1 . . . . . . Repair Station Hacks 2 | . . . . . . . . . . . 2 . Scan Component 1 | . . . . . . . . . . . 1 . Repair 1 | . . . . . . . . . . . 1 . Recycling Unit Hacks . | . . . . . . . . . . . . . Scanalyzer 3 | . . . . . 2 . . . . . 1 . Insert Component 2 | . . . . . 1 . . . . . 1 . Analyze 1 | . . . . . 1 . . . . . . . Garrison Access Hacks 2 | . . . . . . 1 . . . . 1 . Seal Access 2 | . . . . . . 1 . . . . 1 . Unauthorized Hacks 23 | . 8 2 . . 4 9 . . . . . . Terminals 23 | . 8 2 . . 4 9 . . . . . . Track 1 | . . 1 . . . . . . . . . . Botnet 11 | . 4 1 . . 2 4 . . . . . . Skim 11 | . 4 . . . 2 5 . . . . . . Fabricators . | . . . . . . . . . . . . . Repair Stations . | . . . . . . . . . . . . . Recycling Units . | . . . . . . . . . . . . . Scanalyzers . | . . . . . . . . . . . . . Garrison Access . | . . . . . . . . . . . . . Data Cores Recovered . | . . . . . . . . . . . . . Used . | . . . . . . . . . . . . . Hacking Detections 28 | . 7 1 . . 3 13 . . . . 4 . Full Trace Events . | . . . . . . . . . . . . . Feedback Events . | . . . . . . . . . . . . . Feedback Blocked . | . . . . . . . . . . . . . Robot Schematics Acquired 4 | . . . . . . . . . 4 . . . Robots Built 1 | . . . . . . 1 . . . . . . Authchips . | . . . . . . . . . . . . . Time 38 | . . . . . . 38 . . . . . . Total Robot Build Rating 3 | . . . . . . 3 . . . . . . Part Schematics Acquired 16 | . . . . . 1 . . . 15 . . . Parts Built . | . . . . . . . . . . . . . Authchips . | . . . . . . . . . . . . . Time . | . . . . . . . . . . . . . Total Part Build Rating . | . . . . . . . . . . . . . Parts Repaired 1 | . . . . . . . . . . . 1 . Time 22 | . . . . . . . . . . . 22 . Parts Recycled . | . . . . . . . . . . . . . Recycled Matter . | . . . . . . . . . . . . . Retrieved Matter . | . . . . . . . . . . . . . Retrieved Components . | . . . . . . . . . . . . . Parts Scanalyzed 1 | . . . . . 1 . . . . . . . Part Schematics Acquired 1 | . . . . . 1 . . . . . . . Parts Damaged . | . . . . . . . . . . . . . Bothacking | -11 -10 -10 -10 -9 -8 -7 -7 -7 -7 -6 -6 -6 ------------ Run | Yrd Mat Min Exi Min Mat Fac Low Low Zio Pro Fac Low Used RIF Installer . | . . . . . . . . . . . . . Robots Hacked . | . . . . . . . . . . . . . Non-combat . | . . . . . . . . . . . . . Combat . | . . . . . . . . . . . . . Robot Hacks Applied . | . . . . . . . . . . . . . Relay Couplers Released 3 | . . . . . . . . . . . 3 . Programmers 3 | . . . . . . . . . . . 3 . Fabnet Peak Effective % . | . . . . . . . . . . . . . Robots Rewired . | . . . . . . . . . . . . . Allies Hacked 1 | . . . . . . 1 . . . . . . Hacks Repelled . | . . . . . . . . . . . . . Allies | -11 -10 -10 -10 -9 -8 -7 -7 -7 -7 -6 -6 -6 -------- Run | Yrd Mat Min Exi Min Mat Fac Low Low Zio Pro Fac Low Total Allies 8 | . . . . . . 1 . . 4 . 3 . Largest Group 4 | . . . . . . 1 . . 4 4 3 . Highest-Rated Group 155 | . . . . . . 23 . . 155 155 153 . Highest-Rated Ally 51 | . . . . . . 23 . . 40 40 51 . Zionite Dispatches 1 | . . . . . . . . . . . 1 . Hacker 1 | . . . . . . . . . . . 1 . Total Orders 1 | . . . . . . 1 . . . . . . AID 1 | . . . . . . 1 . . . . . . Ally Attacks 84 | . . . . . . . . . . 31 53 . Total Damage 2303 | . . . . . . . . . . 1135 1168 . Kills 18 | . . . . . . . . . . 12 6 . Allies Corrupted . | . . . . . . . . . . . . . Allies Melted . | . . . . . . . . . . . . . Intel | -11 -10 -10 -10 -9 -8 -7 -7 -7 -7 -6 -6 -6 ------- Run | Yrd Mat Min Exi Min Mat Fac Low Low Zio Pro Fac Low Robot Analysis Total 3 | . 1 . . . . 2 . . . . . . Derelict Logs Recovered 10 | . . 2 . 2 . . 1 2 2 1 . . Drone Launches . | . . . . . . . . . . . . . Drone Recoveries . | . . . . . . . . . . . . . Zionite Intel Received 1 | . . . . . . . . . . . 1 . Unaware Analyses 1 | . . . . . . . . . . . 1 . Exploration | -11 -10 -10 -10 -9 -8 -7 -7 -7 -7 -6 -6 -6 ------------- Run | Yrd Mat Min Exi Min Mat Fac Low Low Zio Pro Fac Low Turns Passed 15996 | 85 1128 1045 472 297 582 3276 672 977 2535 1064 3531 332 Spaces Moved 9058 | 64 689 657 508 339 410 1814 334 332 1260 379 2110 162 Core 16 | 1 . 1 . . . . . 5 . 1 8 . Treads 2683 | . 271 210 . . 23 1363 334 183 . . 137 162 Legs 2352 | . . . . . . . . 111 202 281 1758 . Wheels 853 | 63 418 272 . . . . . . . . 100 . Hover 3154 | . . 174 508 339 387 451 . 33 1058 97 107 . Flight . | . . . . . . . . . . . . . Fastest Speed 50 | 50 100 77 77 77 66 66 170 170 191 254 120 160 Average Speed 154 | 99 130 145 90 77 99 148 170 257 198 277 141 160 Slowest Speed 1750 | 100 160 400 147 77 240 250 170 850 280 1750 1650 240 Overloaded Moves . | . . . . . . . . . . . . . Propulsion Burnouts . | . . . . . . . . . . . . . Robots Hopped . | . . . . . . . . . . . . . Cave-ins Triggered . | . . . . . . . . . . . . . Exploration Rate (%) 57 | 4 94 99 81 68 37 45 40 50 89 57 53 30 Regions Visited 12 Branch Regions 8 Pre-discovered Areas 5 | . . 2 1 . . 1 1 . . . . . Known Exits Taken 6 | . . . . . 1 1 1 . 1 1 1 . Unknown Exits Taken 6 | 1 1 1 1 1 . . . 1 . . . . Scrap Searched 16 | . . 1 . 2 . . 1 2 3 4 . 3 Spaces Dug 85 | . . . . . . 13 . 48 . 1 23 . Terrain Destroyed 485 | . . 6 . 42 86 85 . 108 . 5 82 71 Melee 40 | . . . . . . 13 . 3 . 1 23 . Projectile 28 | . . . . . 5 . . . . 4 12 7 AOE 417 | . . 6 . 42 81 72 . 105 . . 47 64 Terrain Rammed . | . . . . . . . . . . . . . Walls Destroyed . | . . . . . . . . . . . . . Machines Disabled . | . . . . . . . . . . . . . Actions | -11 -10 -10 -10 -9 -8 -7 -7 -7 -7 -6 -6 -6 --------- Run | Yrd Mat Min Exi Min Mat Fac Low Low Zio Pro Fac Low Total 10390 | 78 811 713 523 363 548 2185 404 404 1301 392 2461 207 Wait 408 | . 27 28 . 7 79 113 28 13 1 . 102 10 Move 9046 | 63 688 656 507 338 409 1813 333 331 1259 378 2109 162 Hop . | . . . . . . . . . . . . . Pick Up 106 | 6 11 2 3 2 4 21 6 1 14 1 30 5 Fast Attach 120 | 7 2 2 3 1 7 36 5 10 8 5 30 4 Attach 61 | . 1 . 1 2 8 9 5 4 2 . 24 5 Detach 27 | . . . 1 . 5 5 1 3 3 . 5 4 Swap 78 | . 10 7 . 2 4 23 3 7 . 1 19 2 Drop 145 | . 13 4 8 2 11 39 1 7 13 6 38 3 Fire 140 | 2 59 14 . 9 21 2 . 10 . . 12 11 Melee 254 | . . . . . . 124 22 18 1 1 87 1 Ram . | . . . . . . . . . . . . . Kick . | . . . . . . . . . . . . . Crush . | . . . . . . . . . . . . . Escape Stasis 5 | . . . . . . . . . . . 5 . Rewire . | . . . . . . . . . . . . . Trap . | . . . . . . . . . . . . . Miscellaneous . | . . . . . . . . . . . . . Route ------- -11/Scrapyard -10/Materials (discovered 5 exits: [*Mat x3] / *Min x2) -10/Mines (discovered 3 exits: [*Mat x2] / *Exi) -10/Exiles (discovered 2 exits: [*Min x2]) -9/Mines (discovered 2 exits: *Mat x2) -8/Materials (discovered 2 exits: *Fac x2) -7/Factory (discovered 6 exits: *Fac x3 / [*Sto] / *Low x2) -7/Lower Caves -7/Lower Caves -7/Zion -6/Proximity Caves -6/Factory (discovered 3 exits: *Fac x2 / *Low) -6/Lower Caves History --------- Turn | Location | Event 28 | -11/Scrapyard | Discovered new exit (range 16) 86 | -11/Scrapyard | Entered Materials 180 | -10/Materials | Discovered new exit (range 8) 315 | -10/Materials | Build established: Mutant 444 | -10/Materials | Discovered new exit (range 5) 804 | -10/Materials | Discovered new exit (range 9) 945 | -10/Materials | Discovered new exit (range 11) 1055 | -10/Materials | Discovered new exit (range 11) 1214 | -10/Materials | Entered Mines 1215 | -10/Mines | Learned location of Storage (-7) 1235 | -10/Mines | Assembled infested the area 1386 | -10/Mines | Discovered new exit (range 5) 1537 | -10/Mines | Learned Materials interactive machine intel 1564 | -10/Mines | Received a Rocket Launcher from a helpful Derelict 1773 | -10/Mines | Discovered new exit (range 5) 2148 | -10/Mines | Discovered new exit (range 12) 2148 | -10/Mines | Learned location of Zion (-7) 2259 | -10/Mines | Entered Exiles 2270 | -10/Exiles | Discovered new exit (range 15) 2288 | -10/Exiles | Met 8R-AWN 2300 | -10/Exiles | Met EX-HEX 2338 | -10/Exiles | Met EX-DEC 2365 | -10/Exiles | Discovered new exit (range 10) 2393 | -10/Exiles | Build established: Scavenger-Mutant 2460 | -10/Exiles | Visited The Gauntlet 2514 | -10/Exiles | Met EX-BIN 2556 | -10/Exiles | Aligned with FarCom system 2556 | -10/Exiles | Given EX-Vault access code 2574 | -10/Exiles | Opened EX-Vault 2578 | -10/Exiles | Found Latent Energy Streamer 2581 | -10/Exiles | Found YOLO Cannon 2588 | -10/Exiles | Found AWS/Autocannon 2626 | -10/Exiles | Warned to stay clear of 0b10 Research branches 2731 | -10/Exiles | Stole three prototypes: YOLO Cannon, Latent Energy Streamer, AWS/Autocannon 2731 | -10/Exiles | Entered Mines 2740 | -9/Mines | Learned location of 1 exit from Materials 2944 | -9/Mines | Learned Materials interactive machine intel 2991 | -9/Mines | Discovered new exit (range 15) 3004 | -9/Mines | Discovered new exit (range 7) 3028 | -9/Mines | Entered Materials 3028 | -8/Materials | Evolved 4 slots: Propulsion x1, Utility x1, Weapon x2 3029 | -8/Materials | Identified exit to Factory 3030 | -8/Materials | Loaded intel: 19 interactive machine locations 3493 | -8/Materials | Discovered exit to Factory (range 14) 3610 | -8/Materials | Entered Factory 3610 | -7/Factory | Evolved 2 slots: Propulsion x1, Utility x1 3612 | -7/Factory | FarCom data flow suspended 3641 | -7/Factory | Discovered new exit (range 13) 3937 | -7/Factory | Fabricated M-28 Smith? 3953 | -7/Factory | Build established: Scavenger-Gladiator 4769 | -7/Factory | Discovered new exit (range 14) 4906 | -7/Factory | Build established: Gladiator 5191 | -7/Factory | Learned location of Warlord (-4) 5243 | -7/Factory | Discovered new exit (range 13) 5251 | -7/Factory | Learned location of 2 exits from Archives 5299 | -7/Factory | Learned location of 1 exit from Lower Caves 5339 | -7/Factory | Identified exit to Lower Caves 5339 | -7/Factory | Identified exit to Factory 5385 | -7/Factory | Learned 4 Extension zone layouts 5392 | -7/Factory | Learned Hub_04(d) terminal intel 5409 | -7/Factory | Learned location of 2 exits from Archives 5475 | -7/Factory | Learned Hub_04(d) emergency access door positions 6410 | -7/Factory | First assault squad dispatched 6591 | -7/Factory | Build established: Mutant 6886 | -7/Factory | Entered Lower Caves 6887 | -7/Lower Caves | Identified exit to Lower Caves 6889 | -7/Lower Caves | Encountered a Warlord checkpoint 7008 | -7/Lower Caves | Spotted B-75 Beast 7048 | -7/Lower Caves | Destroyed B-75 Beast 7076 | -7/Lower Caves | System corruption reached 10% 7078 | -7/Lower Caves | Lost 3 parts (2p1u) 7315 | -7/Lower Caves | Build established: Gladiator 7431 | -7/Lower Caves | Core integrity fell below 50% 7513 | -7/Lower Caves | Attracted the attention of an 0b10 checkpoint 7558 | -7/Lower Caves | Entered another Lower Caves area 7593 | -7/Lower Caves | Learned Factory stockpile data 7684 | -7/Lower Caves | Learned Factory emergency access door positions 8056 | -7/Lower Caves | Build established: Mutant 8070 | -7/Lower Caves | Lost 3 parts (2n1w) 8414 | -7/Lower Caves | Spotted SM-P3H(f) 8415 | -7/Lower Caves | Encountered a Master Thief 8416 | -7/Lower Caves | Spotted 8P-G3G(f) 8417 | -7/Lower Caves | Encountered a Master Thief 8420 | -7/Lower Caves | Latent Energy Streamer stolen by Master Thief 8426 | -7/Lower Caves | Destroyed SM-P3H(f) 8486 | -7/Lower Caves | Discovered new exit (range 13) 8535 | -7/Lower Caves | Entered Zion 8601 | -7/Zion | System corruption cleaned by Quarantine Array 8624 | -7/Zion | Given the Hacking Drone Bay 8628 | -7/Zion | Found Prototype Device 8889 | -7/Zion | Found CR-A16's Pointy Stick 9147 | -7/Zion | Given A8's code to call for help 9277 | -7/Zion | Found Prototype Processor 9277 | -7/Zion | Identified Exp. Core Analyzer 9281 | -7/Zion | Found Prototype Processor 9281 | -7/Zion | Identified Exp. Armor Integrity Analyzer 9317 | -7/Zion | Found Prototype Processor 9317 | -7/Zion | Identified Exp. Signal Interpreter 9564 | -7/Zion | Found Prototype Processor 9569 | -7/Zion | Found Prototype Processor 9669 | -7/Zion | Met Imprinter 9700 | -7/Zion | Imprinted 9702 | -7/Zion | Declared Zion's savior 9957 | -7/Zion | Learned 4 Factory zone layouts 11028 | -7/Zion | Discovered new exit (range 15) 11067 | -7/Zion | Identified exit to Proximity Caves 11070 | -7/Zion | Entered Proximity Caves 11070 | -6/Proximity Caves | Accompanied by 4 allies 11173 | -6/Proximity Caves | Build established: Gunner 11279 | -6/Proximity Caves | Spotter reported a threat 11390 | -6/Proximity Caves | Learned location of 1 exit from Factory 11736 | -6/Proximity Caves | Attracted the attention of an 0b10 checkpoint 11736 | -6/Proximity Caves | Core integrity fell below 20% 12114 | -6/Proximity Caves | Discovered exit to Factory (range 5) 12134 | -6/Proximity Caves | Entered Factory 12134 | -6/Factory | Accompanied by 1 ally 12134 | -6/Factory | Evolved 2 slots: Utility x2 12135 | -6/Factory | Identified exit to Factory 12214 | -6/Factory | Repaired Hvy. Missile Launcher 12620 | -6/Factory | Build established: Gladiator 12626 | -6/Factory | Retrieved Zion intel report: Unaware Analyses 12627 | -6/Factory | Zion Hacker squad teleported in 13707 | -6/Factory | Terminal network hard line cut 14226 | -6/Factory | Identified Spectral Analyzer 14333 | -6/Factory | Cargo convoy interrupted 14381 | -6/Factory | Destroyed 7 combat bots 14388 | -6/Factory | Lost 4 parts (3n1u) 14714 | -6/Factory | Build established: Scavenger-Gladiator 14934 | -6/Factory | First assault squad dispatched 14986 | -6/Factory | Core integrity fell below 50% 15027 | -6/Factory | Lost 4 parts (1p1n1u1w) 15074 | -6/Factory | Core integrity fell below 20% 15498 | -6/Factory | System corruption reached 10% 15624 | -6/Factory | AWS/Autocannon suddenly broke down 15651 | -6/Factory | Discovered new exit (range 9) 15662 | -6/Factory | Identified exit to Lower Caves 15665 | -6/Factory | Entered Lower Caves 15737 | -6/Lower Caves | Attracted the attention of an 0b10 checkpoint 15984 | -6/Lower Caves | Ambushed by research squad 15997 | -6/Lower Caves | Destroyed by G-67 Veteran with Field Laser Last Messages --------------- 15974_ Exp. Core Analyzer destroyed. 15983_ Slug penetrates Wall. 15984_ P-60 Hacker: "UNIQUE TECHNOLOGY DETECTED, NEUTRALIZE FOR ANALYSIS." 15985_ System corrupted: Hvy. Plasma Cannon rejected. 15985_ Slug penetrates Wall. 15986_ Critical hit (Destroy). 15986_ Imp. Deuterium Engine destroyed. 15986_ Slug penetrates Wall. 15987_ Destroyed Carbon-fiber Leg. 15987_ Lgt. Angular Momentum Engine melted. 15987_ G-50 Soldier destroyed. 15988_ Slug penetrates Wall. 15992_ Wall collapses. 15992_ Penetrated by Slug. 15993_ Slug penetrates Wall. 15993_ Penetrated by Slug. 15993_ Critical hit (Destroy). 15993_ Imp. Medium Treads destroyed. 15995_ Slug penetrates Wall. 15996_ Hvy. Plasma Cannon destroyed. Map ----- +----------------------------------------------------+ | ?????????????????????????????????????????????????? | | ?????????????????????????????????????????????????? | | ?????????????????????????????????????????????????? | | ?????????????????????????????????????????????????? | | ?????????????????????????????????????????????????? | | ?????????????????????????????????????????????????? | | ??????????????????????????????????##?????????????? | | ???????????????????????##???????? ##????????????? | | ??????????????????????## ????#### ?????????????? | | ??????????????????????# ???# ??????????????? | | ?????????????????????## ??# ??????????????? | | ?????????????????????# ?? ???????????????? | | ?????????????????????# #? ????????????????? | | ?????????????????????# #? ????????????????? | | ?????????????????????# ## ?????####????????? | | ?????????????????????# ;# ##### ##???????? | | ????????????????????## # #???????? | | ????????????????????# #h #???????? | | ????????????????????? ;hp #### ???# | | ?????????????????????# ;;;#; ????# | | ?????????????????????# ;;;; ; #??????# | | ?????????????????????? ## ??# | | ??????????????????????# % ??# | | ?????????????????????##; g ?## | | ?????????????????????# ;] ;;; ;; ?# | | ?????????????????????##; @ ; ### #??????# ???# | | ?????????????????????# ; ; ##?????######## ### | | ?????????????????????### ;;##??????# | | ???????????????????????# #####?????# ### ### | | ???????????????????????# %### ##????# #??????## | | ???????????????????????# ##= ###### #????????## | | ??????????????????????## ##% #?????????# | | ??????????????????????# ##?????????# | | ??????????????????????# #### #??????????# | | ??????????????????????### # #??# #??????????# | | ????????????????????????##########??# #??????????# | | ????????????????????????????????????# #??????????# | | ????????????????????????????????????# #??????????# | | ????????????????????????????????????# ##????????## | | ????????????????????????????????????# ###?????## | | ????????????????????????????????????# ####### | | ????????????????????????????????????## | | ?????????????????????????????????????############# | | ?????????????????????????????????????????????????? | | ?????????????????????????????????????????????????? | | ?????????????????????????????????????????????????? | | ?????????????????????????????????????????????????? | | ?????????????????????????????????????????????????? | | ?????????????????????????????????????????????????? | | ?????????????????????????????????????????????????? | +----------------------------------------------------+ Best States ------------- Heat Dissipation 70 Energy Generation 21 Energy Capacity 800 Matter Stores 300 Matter Capacity 300 Sight Range 23 Robot Scan Range 16 Terrain Scan Density 210 Jamming Range 14 Armor Coverage 600 Resistance: TH 10 Resistance: EX 25 Utility Shielding 66 Melee Speed Boost 20 Phase Shifting 5 Evasion (%) 55 Melee Accuracy 8 Target Analysis 8 Core Analysis 8 Armor Integrity Analysis 50 Recoil Reduction 4 Salvage Targeting 2 Item Schematics ----------------- Mni. Grenade Launcher | -8/Materials | Scanalyzed Gatling Laser | -7/Zion | Archive Thermic Laser | -7/Zion | Archive Hvy. Laser | -7/Zion | Archive Hvy. Ion Cannon | -7/Zion | Archive Kinecellerator | -7/Zion | Archive Thermal Shield | -7/Zion | Archive Imp. Particle Charger | -7/Zion | Archive Imp. Transmission Jammer | -7/Zion | Archive Enh. Optical Array | -7/Zion | Archive Gauss Rifle | -7/Zion | Archive Variable Charge Gun | -7/Zion | Archive Imp. Medium Armor Plating | -7/Zion | Archive Cloaking Device | -7/Zion | Archive Imp. Titanium Leg | -7/Zion | Archive Proton Cannon | -7/Zion | Archive Robot Schematics ------------------ L-41 Fighter | -7/Zion | Archive A-02 Transporter | -7/Zion | Archive X-57 Shotgunner | -7/Zion | Archive G-73 Enforcer | -7/Zion | Archive Fabricated ------------ M-28 Smith | x1 | -7/Factory | Preloaded Alien Tech Used ----------------- None Achievements -------------- Batter Up Challenges ------------ None Game ------ Seed CoolantGuidedArmor Manual? 0 Play Time 02:15:08 Cumulative 188.1 hours Start 2024.11.25 @ 21:35:19 End 2024.11.25 @ 23:53:31 Sessions 1 Manual Loads 0 Difficulty Rogue Special Mode None Game No. 67 Rogue 66 Adventurer 1 Explorer 0 Win Type - Total 4 Types 4/0/0/0/0/0/0/0/0 Lore% 54 Gallery% 66 Achievement% 53 Wizard Run 0 Options --------- Layout 0 ASCII 1 Keyboard 1 Movement Vi Keybinds 0 Fullscreen 2 Font 36/Terminus++ Map View 76x50 Zoom Use 0% Tactical HUD 1 Map Filters NONE Filters NONE Steam 1 RUN: 67278c30-1b81-448f-82c2-92815b35d876